fUST/lending_fUST_20240302
["ID","MTS","AMOUNT","RATE_DAILY","PERIOD"]
[316155686,1709382643085,-7830.32226705,0.00022421,3]
[316155688,1709382643095,-500.0,0.00022423,2]
[316155690,1709382643104,-500.0,0.00022423,2]
[316155691,1709382643114,-158.64,0.00022423,2]
[316155693,1709382643123,-3765.39722649,0.00022445,4]
[316155695,1709382643134,-280.43,0.00023,7]
[316155697,1709382643144,-306.0,0.00023041,2]
[316155699,1709382643154,-652.16824873,0.00023093,2]
[316155700,1709382643163,-519.16,0.00023177,2]
[316155702,1709382643174,-153.0,0.00023178,2]
[316155704,1709382643185,-200.7312975,0.00023178,2]
[316155706,1709382643194,-153.0,0.00023178,2]
[316155707,1709382643204,-153.0,0.00023178,2]
[316155709,1709382643216,-153.0,0.00023178,2]
[316155711,1709382643227,-200.7312975,0.00023178,2]
[316155713,1709382643237,-153.0,0.00023178,2]
[316155715,1709382643247,-200.7312975,0.00023178,2]
[316155717,1709382643257,-153.0,0.00023178,2]
[316155718,1709382643267,-200.7312975,0.00023178,2]
[316155720,1709382643276,-153.0,0.00023178,2]
[316155722,1709382643286,-153.0,0.00023278,2]
[316155724,1709382643297,-200.7312975,0.00023278,2]
[316155726,1709382643307,-153.0,0.00023278,2]
[316155728,1709382643317,-200.7312975,0.00023278,2]
[316155739,1709382643441,-200.7312975,0.00023278,2]
[316155741,1709382643457,-200.7312975,0.00023278,2]
[316155743,1709382643468,-5000.0,0.00023863,5]
[316155744,1709382643478,-500.0,0.00023869,2]
[316155746,1709382643487,-5000.0,0.0002387,5]
[316155748,1709382643497,-500.0,0.00023891,2]
[316155750,1709382643506,-500.0,0.00023891,2]
[316155752,1709382643515,-500.0,0.00023891,2]
[316155753,1709382643525,-333.87,0.00023891,2]
[316155755,1709382643535,-500.0,0.00023891,2]
[316155757,1709382643544,-500.0,0.00023891,2]
[316155759,1709382643553,-407.12,0.00023891,2]
[316155760,1709382643563,-50000.0,0.00023892,5]
[316155762,1709382643572,-504.69050327,0.00023896,2]
[316155764,1709382643581,-500.0,0.00023896,2]
[316155766,1709382643590,-500.0,0.00023896,2]
[316155767,1709382643599,-500.0,0.00023896,2]
[316155769,1709382643608,-500.0,0.00023896,2]
[316155771,1709382643618,-500.0,0.00023896,2]
[316155773,1709382643627,-500.0,0.00023896,2]
[316155775,1709382643636,-500.0,0.00023896,2]
[316155776,1709382643644,-505.12355103,0.00023896,2]
[316155778,1709382643653,-500.0,0.00023896,2]
[316155780,1709382643662,-500.0,0.00023896,2]
[316155782,1709382643671,-500.0,0.00023896,2]
[316155783,1709382643680,-500.0,0.00023896,2]
[316155785,1709382643689,-324.92942874,0.00023896,2]
[316155787,1709382643698,-500.0,0.00023896,2]
[316155789,1709382643707,-501.59162361,0.00023896,2]
[316155791,1709382643717,-500.0,0.00023896,2]
[316155792,1709382643726,-500.0,0.00023896,2]
[316155794,1709382643735,-500.0,0.00023896,2]
[316155796,1709382643744,-500.0,0.00023896,2]
[316155798,1709382643752,-7661.81010337,0.00023897,2]
[316155800,1709382643761,-500.0,0.00023898,2]
[316155801,1709382643770,-500.0,0.00023899,2]
[316155803,1709382643779,-500.0,0.00023899,2]
[316155805,1709382643788,-519.16,0.00023899,2]
[316155807,1709382643797,-5000.0,0.00023917,5]
[316155808,1709382643806,-5000.0,0.00023919,5]
[316155810,1709382643815,-500.0,0.00023997,2]
[316155812,1709382643824,-500.0,0.00023997,2]
[316155814,1709382643833,-500.0,0.00023997,2]
[316155816,1709382643842,-500.0,0.00023997,2]
[316155817,1709382643851,-409.98,0.00023997,2]
[316155819,1709382643860,-500.0,0.00023997,2]
[316155821,1709382643869,-250.33,0.00023997,2]
[316155823,1709382643878,-500.0,0.00023997,2]
[316155825,1709382643887,-500.0,0.00023997,2]
[316155826,1709382643895,-500.0,0.00023997,2]
[316155828,1709382643905,-500.0,0.00023997,2]
[316155830,1709382643914,-500.0,0.00023997,2]
[316155832,1709382643923,-500.0,0.00023997,2]
[316155834,1709382643931,-626.37,0.00023997,2]
[316155835,1709382643940,-500.0,0.00023997,2]
[316155837,1709382643950,-2502.76,0.00023997,2]
[316155839,1709382643959,-2502.76,0.00023997,2]
[316155841,1709382643969,-500.0,0.00023997,2]
[316155843,1709382643978,-500.0,0.00023997,2]
[316155845,1709382643987,-500.0,0.00023997,2]
[316155846,1709382643996,-500.0,0.00023997,2]
[316155848,1709382644005,-500.0,0.00023997,2]
[316155850,1709382644016,-500.0,0.00023997,2]
[316155852,1709382644025,-500.0,0.00023997,2]
[316155854,1709382644034,-500.0,0.00023997,2]
[316155855,1709382644043,-246.92,0.00023997,2]
[316155857,1709382644052,-500.0,0.00023997,2]
[316155859,1709382644061,-836.94,0.00023997,2]
[316155861,1709382644071,-465.50256294,0.00023997,2]
[316155863,1709382644080,-836.94,0.00023997,2]
[316155864,1709382644088,-500.0,0.00023997,2]
[316155866,1709382644098,-500.0,0.00023997,2]
[316155868,1709382644107,-926.4397267,0.00023998,2]
[316155870,1709382644116,-557.46628906,0.00023998,2]
[316155872,1709382644124,-744.52927298,0.00023998,2]
[316155873,1709382644133,-529.13220073,0.00023998,2]
[316155875,1709382644142,-538.28611226,0.00023998,2]
[316155877,1709382644151,-11501.36130531,0.00023998,2]
[316155879,1709382644164,-1001.95745928,0.00023998,2]
[316155881,1709382644175,-2729.38053908,0.00023998,2]
[316155883,1709382644184,-155.12254681,0.00023998,2]
[316155884,1709382644192,-778.23043792,0.00023998,2]
[316155886,1709382644204,-1341.63012395,0.00023998,2]
[316156235,1709382648231,-242.63658915,0.00020679,2]
[316156237,1709382648241,-500.0,0.00020679,2]
[316156239,1709382648251,-170.88078617,0.00023899,2]
[316156241,1709382648261,-8861.75232545,0.00023998,2]
[316156243,1709382648273,-955.92067015,0.00023998,2]
[316156245,1709382648287,-2070.00001,0.00023998,2]
[316156247,1709382648301,-1921.59001159,0.00023998,2]
[316156249,1709382648311,-238.50130044,0.00023998,2]
[316156252,1709382648321,-1040.22868797,0.00023998,2]
[316161488,1709383832170,-280.28110387,0.00019177,2]
[316161489,1709383832185,-166.666666,0.00019178,2]
[316161490,1709383832194,-378.47041863,0.00019229,2]
[316161964,1709383839496,-2055.12403594,0.00019229,2]
[316161965,1709383839505,-874.7905259,0.0001923,2]
[316161967,1709383839517,-181.854453,0.000194,2]
[316161969,1709383839526,-3000.0,0.00019416,2]
[316161971,1709383839535,-2717.02502471,0.00019429,2]
[316161975,1709383839561,-3760.8,0.00019429,2]
[316162060,1709383841298,-251.39133245,0.00019429,2]
[316162063,1709383841309,-404.01179138,0.00019429,2]
[316162065,1709383841321,-490.1510355,0.00019429,2]
[316162067,1709383841332,-1772.66856104,0.00019429,2]
[316162069,1709383841344,-2388.07837051,0.00019429,2]
[316162073,1709383841369,-6759.42242454,0.00019429,2]
[316162076,1709383841380,-464.78866184,0.00019429,2]
[316162079,1709383841390,-367.733038,0.00019429,2]
[316162205,1709383843207,-4329.84306783,0.00019429,2]
[316162207,1709383843218,-312.009779,0.0002,2]
[316162209,1709383843229,-500.0,0.00021152,2]
[316162211,1709383843243,-312.21,0.00021152,2]
[316162213,1709383843253,-519.16,0.00021152,2]
[316162215,1709383843266,-500.0,0.00021896,2]
[316162217,1709383843276,-500.0,0.00021897,2]
[316162219,1709383843286,-500.0,0.00021897,2]
[316162221,1709383843297,-500.0,0.00021897,2]
[316162222,1709383843306,-500.0,0.00021897,2]
[316162224,1709383843316,-500.0,0.00021897,2]
[316162226,1709383843326,-639.85,0.00021897,2]
[316162228,1709383843336,-500.0,0.00021897,2]
[316162230,1709383843346,-1897.9,0.00021897,2]
[316162232,1709383843356,-500.0,0.00021897,2]
[316162234,1709383843365,-500.0,0.00021897,2]
[316162236,1709383843375,-500.0,0.00021897,2]
[316162238,1709383843385,-500.0,0.00021897,2]
[316162240,1709383843394,-627.7,0.00021897,2]
[316162241,1709383843404,-1000.60373238,0.00021898,2]
[316162242,1709383843414,-501.42084163,0.00021898,2]
[316162243,1709383843423,-500.0,0.00021898,2]
[316162244,1709383843433,-500.0,0.00021898,2]
[316162245,1709383843443,-500.0,0.00021898,2]
[316162246,1709383843453,-500.0,0.00021898,2]
[316162247,1709383843463,-500.0,0.00021898,2]
[316162248,1709383843472,-497.47672875,0.00021898,2]
[316162249,1709383843482,-324.47585041,0.00021899,2]
[316162285,1709383846212,-500.0,0.00021897,2]
[316162286,1709383846222,-175.52414959,0.00021899,2]
[316162287,1709383846231,-500.0,0.00021899,2]
[316162288,1709383846242,-500.29726414,0.00021899,2]
[316162289,1709383846252,-500.8056287,0.00021899,2]
[316162290,1709383846261,-500.0,0.00021899,2]
[316162291,1709383846271,-500.0,0.00021899,2]
[316162292,1709383846280,-148.11007767,0.00021899,2]
[316162342,1709385032280,-280.28110387,0.00018849,2]
[316162344,1709385032290,-313.5129456,0.00018849,2]
[316162346,1709385032299,-155.00155002,0.0001885,2]
[316162348,1709385032308,-1634.92402933,0.00018851,2]
[316162350,1709385032317,-2433.59445457,0.00018852,2]
[316162352,1709385032326,-300.0,0.00018854,2]
[316162353,1709385032336,-18025.7493594,0.00018865,2]
[316162355,1709385032345,-431.2840898,0.00019178,4]
[316162357,1709385032354,-1690.2937372,0.00019202,2]
[316162358,1709385032363,-386.950132,0.00019277,2]
[316162359,1709385032373,-481.9057648,0.00019302,2]
[316162360,1709385032381,-787.1695111,0.00019351,2]
[316162362,1709385032391,-667.06915492,0.00019798,2]
[316162364,1709385032400,-420.0,0.00020554,2]
[316162366,1709385032409,-500.0,0.00021896,2]
[316162367,1709385032418,-500.0,0.00021896,2]
[316162368,1709385032428,-500.0,0.00021896,2]
[316162370,1709385032437,-557.94,0.00021896,2]
[316162371,1709385032446,-500.0,0.00021896,2]
[316162372,1709385032456,-500.0,0.00021897,2]
[316162373,1709385032465,-500.0,0.00021897,2]
[316162374,1709385032474,-500.0,0.00021897,2]
[316162375,1709385032484,-500.0,0.00021897,2]
[316162376,1709385032494,-500.0,0.00021897,2]
[316162377,1709385032503,-151.51515152,0.00021901,2]
[316162378,1709385032513,-727.87,0.0002199,3]
[316162379,1709385032522,-641.1,0.00021998,2]
[316162380,1709385032533,-158.52043867,0.00021998,2]
[316162381,1709385032542,-500.0,0.00021998,2]
[316162382,1709385032552,-500.0,0.00021998,2]
[316162383,1709385032561,-500.0,0.00021998,2]
[316162384,1709385032571,-500.0,0.00021998,2]
[316162385,1709385032581,-500.0,0.00021998,2]
[316162386,1709385032590,-500.0,0.00021998,2]
[316162387,1709385032599,-1818.82,0.00021998,2]
[316162388,1709385032609,-500.0,0.00021998,2]
[316162389,1709385032618,-500.0,0.00021998,2]
[316162390,1709385032628,-248.35557997,0.00021998,2]
[316162391,1709385032637,-151.0,0.00021999,2]
[316162392,1709385032646,-174.39,0.00021999,2]
[316162393,1709385032656,-174.39,0.00021999,2]
[316162394,1709385032665,-174.39,0.00021999,2]
[316162395,1709385032675,-174.39,0.00021999,2]
[316162396,1709385032684,-174.39,0.00021999,2]
[316162397,1709385032694,-500.0,0.00021999,2]
[316162398,1709385032704,-505.986125,0.00021999,2]
[316162399,1709385032714,-500.0,0.00021999,2]
[316162400,1709385032723,-500.0,0.00021999,2]
[316162401,1709385032733,-500.0,0.00021999,2]
[316162402,1709385032743,-500.0,0.00021999,2]
[316162403,1709385032752,-500.0,0.00021999,2]
[316162404,1709385032762,-500.0,0.00021999,2]
[316162405,1709385032772,-500.0,0.00021999,2]
[316162406,1709385032783,-500.0,0.00021999,2]
[316162407,1709385032793,-500.0,0.00021999,2]
[316162408,1709385032803,-500.0,0.00021999,2]
[316162409,1709385032813,-500.0,0.00021999,2]
[316162410,1709385032822,-500.0,0.00021999,2]
[316162411,1709385032832,-500.0,0.00021999,2]
[316162412,1709385032841,-500.0,0.00021999,2]
[316162413,1709385032851,-500.0,0.00021999,2]
[316162414,1709385032861,-500.0,0.00021999,2]
[316162415,1709385032871,-500.0,0.00021999,2]
[316162416,1709385032880,-500.0,0.00021999,2]
[316162417,1709385032889,-642.16298074,0.00021999,2]
[316162418,1709385032899,-500.0,0.00021999,2]
[316162419,1709385032909,-351.88992233,0.00021999,2]
[316162420,1709385032918,-151.04,0.00021999,2]
[316162421,1709385032928,-601.55,0.00021999,2]
[316162422,1709385032937,-601.55,0.00021999,2]
[316162423,1709385032947,-601.55,0.00021999,2]
[316162424,1709385032957,-601.55,0.00021999,2]
[316162425,1709385032966,-500.0,0.00021999,2]
[316162426,1709385032976,-500.0,0.00021999,2]
[316162427,1709385032986,-500.0,0.00021999,2]
[316162428,1709385032995,-500.0,0.00021999,2]
[316162429,1709385033006,-500.0,0.00021999,2]
[316162430,1709385033016,-500.0,0.00021999,2]
[316162431,1709385033026,-213.07,0.00021999,2]
[316162432,1709385033036,-500.0,0.00021999,2]
[316162433,1709385033045,-500.0,0.00021999,2]
[316162434,1709385033055,-161.04,0.00021999,2]
[316162435,1709385033064,-500.0,0.00021999,2]
[316162436,1709385033081,-500.0,0.00021999,2]
[316162437,1709385033096,-500.0,0.00021999,2]
[316162438,1709385033105,-500.0,0.00021999,2]
[316162439,1709385033115,-500.0,0.00021999,2]
[316162440,1709385033125,-500.0,0.00021999,2]
[316162441,1709385033134,-500.0,0.00021999,2]
[316162442,1709385033145,-500.0,0.00021999,2]
[316162443,1709385033154,-204.49,0.00021999,2]
[316162444,1709385033166,-1818.82,0.00021999,2]
[316162445,1709385033176,-1818.82,0.00021999,2]
[316162446,1709385033185,-1818.82,0.00021999,2]
[316162447,1709385033195,-1818.82,0.00021999,2]
[316162448,1709385033206,-500.0,0.00021999,2]
[316162449,1709385033216,-467.06,0.00021999,2]
[316162450,1709385033226,-367.65,0.00021999,2]
[316162451,1709385033236,-75459.28641565,0.00022,3]
[316162468,1709385038341,-1303.24843303,0.00022,3]
[316162927,1709385042952,-469.48213171,0.00022,3]
[316162930,1709385042964,-1834.530756,0.00022,3]
[316163487,1709385048575,-20957.60944001,0.00022,3]
[316166115,1709386232519,-214.50892528,0.00019152,2]
[316166116,1709386232530,-155.00155002,0.00019153,2]
[316166117,1709386232540,-280.28110387,0.00019154,2]
[316166118,1709386232550,-166.666666,0.00019178,2]
[316166119,1709386232558,-200.50881291,0.00019331,2]
[316166120,1709386232570,-231.78877609,0.00019331,2]
[316166121,1709386232579,-279.0,0.00019466,2]
[316166122,1709386232589,-23156.0348146,0.00019467,2]
[316166124,1709386232598,-245.82306655,0.00019482,2]
[316166126,1709386232607,-183.707313,0.0001951,2]
[316166127,1709386232617,-151.51515152,0.00019701,2]
[316166129,1709386232626,-163.34024466,0.00019898,2]
[316166131,1709386232635,-444.71276994,0.000199,2]
[316166133,1709386232644,-500.0,0.00021898,2]
[316166136,1709386232655,-500.0,0.00021898,2]
[316166138,1709386232665,-500.41943151,0.00021898,2]
[316166140,1709386232674,-517.07724007,0.00021898,2]
[316166141,1709386232683,-500.0,0.00021899,2]
[316166144,1709386232693,-500.0,0.00021899,2]
[316166146,1709386232705,-501.19195428,0.00021899,2]
[316166148,1709386232714,-501.0464764,0.00021899,2]
[316166149,1709386232723,-500.0,0.00021899,2]
[316166151,1709386232733,-500.0,0.00021899,2]
[316166155,1709386232752,-500.0,0.00021899,2]
[316166157,1709386232763,-169.50881089,0.00021899,2]
[316166159,1709386232773,-500.0,0.00021899,2]
[316166161,1709386232782,-500.0,0.00021899,2]
[316166163,1709386232792,-500.0,0.00021899,2]
[316166165,1709386232801,-501.22369935,0.00021899,2]
[316166167,1709386232812,-513.88180142,0.00021899,2]
[316166169,1709386232821,-500.0,0.00021899,2]
[316166171,1709386232831,-500.0,0.00021899,2]
[316166173,1709386232841,-501.35811067,0.00021899,2]
[316166175,1709386232850,-504.80743279,0.00021899,2]
[316166177,1709386232860,-500.0,0.00021899,2]
[316166179,1709386232869,-500.0,0.00021899,2]
[316166181,1709386232879,-500.0,0.00021899,2]
[316166183,1709386232888,-727.92,0.00021899,2]
[316166185,1709386232897,-500.0,0.00021899,2]
[316166187,1709386232906,-500.0,0.00021899,2]
[316166189,1709386232916,-618.42261535,0.00021899,2]
[316166191,1709386232925,-500.0,0.00021899,2]
[316166193,1709386232934,-500.0,0.00021899,2]
[316166195,1709386232944,-500.0,0.00021899,2]
[316166197,1709386232954,-500.0,0.00021899,2]
[316166199,1709386232964,-500.0,0.00021899,2]
[316166201,1709386232974,-500.0,0.00021899,2]
[316166203,1709386232984,-500.0,0.00021899,2]
[316166205,1709386232994,-321.14339479,0.00021899,2]
[316166207,1709386233005,-500.0,0.00021899,2]
[316166209,1709386233016,-500.0,0.00021899,2]
[316166211,1709386233028,-632.27431855,0.00021899,2]
[316166214,1709386233039,-500.0,0.00021899,2]
[316166216,1709386233054,-500.0,0.00021899,2]
[316166217,1709386233065,-182.29292872,0.00021899,2]
[316166220,1709386233078,-500.0,0.00021899,2]
[316166222,1709386233089,-500.0,0.00021899,2]
[316166224,1709386233099,-500.0,0.00021899,2]
[316166226,1709386233109,-500.0,0.00021899,2]
[316166228,1709386233119,-500.0,0.00021899,2]
[316166230,1709386233130,-500.0,0.00021899,2]
[316166232,1709386233141,-500.0,0.00021899,2]
[316166234,1709386233151,-500.42849787,0.00021899,2]
[316166236,1709386233161,-500.0,0.00021899,2]
[316166238,1709386233171,-500.0,0.00021899,2]
[316166240,1709386233181,-500.36236225,0.00021899,2]
[316166242,1709386233191,-500.0,0.00021899,2]
[316166244,1709386233201,-500.0,0.00021899,2]
[316166246,1709386233211,-575.54006568,0.00021899,2]
[316166248,1709386233221,-500.0,0.00021899,2]
[316166250,1709386233231,-500.0,0.00021899,2]
[316166252,1709386233241,-1502.4,0.00021899,2]
[316166254,1709386233251,-500.0,0.00021899,2]
[316166256,1709386233260,-648.19206085,0.00021899,2]
[316166258,1709386233270,-500.0,0.00021899,2]
[316166260,1709386233281,-500.0,0.00021899,2]
[316166262,1709386233294,-180.26518435,0.00021899,2]
[316166264,1709386233303,-500.0,0.00021899,2]
[316166266,1709386233312,-500.0,0.00021899,2]
[316166268,1709386233321,-500.0,0.00021899,2]
[316166270,1709386233330,-500.0,0.00021899,2]
[316166272,1709386233339,-500.0,0.00021899,2]
[316166274,1709386233348,-500.0,0.00021899,2]
[316166276,1709386233358,-500.65397138,0.00021899,2]
[316166278,1709386233367,-500.0,0.00021899,2]
[316166280,1709386233376,-500.0,0.00021899,2]
[316166282,1709386233385,-500.0,0.00021899,2]
[316166284,1709386233394,-500.0,0.00021899,2]
[316166286,1709386233403,-500.0,0.00021899,2]
[316166288,1709386233412,-500.0,0.00021899,2]
[316166290,1709386233421,-577.40085016,0.00021899,2]
[316166292,1709386233430,-500.0,0.00021899,2]
[316166294,1709386233439,-500.0,0.00021899,2]
[316166296,1709386233448,-500.0,0.00021899,2]
[316166298,1709386233458,-500.82524467,0.00021899,2]
[316166300,1709386233467,-500.0,0.00021899,2]
[316166301,1709386233478,-500.0,0.00021899,2]
[316166303,1709386233494,-502.52416543,0.00021899,2]
[316166305,1709386233512,-500.0,0.00021899,2]
[316166307,1709386233522,-500.0,0.00021899,2]
[316166310,1709386233532,-500.0,0.00021899,2]
[316166312,1709386233544,-500.0,0.00021899,2]
[316166314,1709386233554,-500.0,0.00021899,2]
[316166316,1709386233564,-500.0,0.00021899,2]
[316166318,1709386233574,-500.0,0.00021899,2]
[316166320,1709386233584,-500.0,0.00021899,2]
[316166322,1709386233594,-500.0,0.00021899,2]
[316166324,1709386233604,-500.94383318,0.00021899,2]
[316166326,1709386233614,-500.0,0.00021899,2]
[316166328,1709386233624,-500.0,0.00021899,2]
[316166330,1709386233633,-500.0,0.00021899,2]
[316166332,1709386233642,-500.0,0.00021899,2]
[316166334,1709386233652,-500.0,0.00021899,2]
[316166336,1709386233661,-500.82785639,0.00021899,2]
[316166337,1709386233670,-500.0,0.00021899,2]
[316166339,1709386233680,-25018.35438393,0.000219,4]
[316166342,1709386233689,-400.0,0.00021918,2]
[316166343,1709386233700,-500.0,0.00021954,2]
[316166345,1709386233709,-500.0,0.00021996,2]
[316166348,1709386233719,-500.0,0.00021996,2]
[316166350,1709386233728,-500.0,0.00021996,2]
[316166352,1709386233738,-500.0,0.00021996,2]
[316166354,1709386233747,-342.22748544,0.00021996,2]
[316166356,1709386233757,-500.0,0.00021996,2]
[316166358,1709386233766,-619.7420798,0.00021996,2]
[316166359,1709386233787,-500.0,0.00021996,2]
[316166362,1709386233799,-500.0,0.00021996,2]
[316166364,1709386233808,-500.0,0.00021996,2]
[316166366,1709386233817,-500.0,0.00021996,2]
[316166368,1709386233826,-500.0,0.00021996,2]
[316166370,1709386233836,-500.0,0.00021996,2]
[316166372,1709386233845,-500.0,0.00021996,2]
[316166374,1709386233854,-500.0,0.00021996,2]
[316166376,1709386233862,-531.92,0.00021996,2]
[316166378,1709386233871,-500.0,0.00021996,2]
[316166380,1709386233880,-500.0,0.00021996,2]
[316166382,1709386233889,-500.0,0.00021996,2]
[316166384,1709386233898,-500.0,0.00021996,2]
[316166386,1709386233907,-500.0,0.00021996,2]
[316166388,1709386233916,-628.24,0.00021996,2]
[316166390,1709386233926,-500.0,0.00021996,2]
[316166391,1709386233935,-316.35,0.00021996,2]
[316166394,1709386233945,-500.0,0.00021996,2]
[316166396,1709386233954,-500.0,0.00021996,2]
[316166398,1709386233963,-500.0,0.00021996,2]
[316166400,1709386233973,-500.0,0.00021996,2]
[316166402,1709386233982,-568.19,0.00021996,2]
[316166404,1709386233991,-500.0,0.00021996,2]
[316166405,1709386234001,-500.0,0.00021996,2]
[316166407,1709386234010,-489.42,0.00021996,2]
[316166409,1709386234019,-500.0,0.00021996,2]
[316166412,1709386234029,-199.31462238,0.00021996,2]
[316166414,1709386234039,-500.0,0.00021996,2]
[316166416,1709386234050,-500.0,0.00021996,2]
[316166418,1709386234060,-500.0,0.00021996,2]
[316166420,1709386234069,-500.0,0.00021996,2]
[316166422,1709386234079,-500.0,0.00021996,2]
[316166424,1709386234087,-500.0,0.00021997,2]
[316166426,1709386234097,-615.80805642,0.00021997,2]
[316166428,1709386234107,-500.0,0.00021997,2]
[316166430,1709386234116,-503.13338535,0.00021997,2]
[316166432,1709386234125,-500.0,0.00021997,2]
[316166434,1709386234134,-500.0,0.00021997,2]
[316166436,1709386234144,-496.76827663,0.00021997,2]
[316166438,1709386234153,-500.0,0.00021997,2]
[316166440,1709386234163,-500.0,0.00021997,2]
[316166442,1709386234172,-500.0,0.00021997,2]
[316166444,1709386234181,-500.0,0.00021997,2]
[316166446,1709386234191,-500.0,0.00021997,2]
[316166448,1709386234201,-500.0,0.00021997,2]
[316166450,1709386234211,-500.0,0.00021997,2]
[316166452,1709386234220,-500.0,0.00021997,2]
[316166454,1709386234230,-501.23396073,0.00021997,2]
[316166456,1709386234239,-500.0,0.00021997,2]
[316166458,1709386234249,-500.0,0.00021997,2]
[316166460,1709386234259,-500.48246567,0.00021997,2]
[316166462,1709386234268,-503.09460402,0.00021997,2]
[316166464,1709386234277,-500.0,0.00021997,2]
[316166466,1709386234288,-437.50501986,0.00021997,2]
[316166468,1709386234300,-500.0,0.00021997,2]
[316166470,1709386234309,-500.0,0.00021997,2]
[316166472,1709386234318,-641.63622781,0.00021997,2]
[316166474,1709386234328,-500.0,0.00021997,2]
[316166476,1709386234338,-500.0,0.00021997,2]
[316166478,1709386234347,-500.0,0.00021997,2]
[316166480,1709386234357,-500.0,0.00021997,2]
[316166482,1709386234366,-500.0,0.00021997,2]
[316166484,1709386234376,-500.0,0.00021997,2]
[316166486,1709386234385,-500.0,0.00021997,2]
[316166488,1709386234394,-500.0,0.00021997,2]
[316166490,1709386234403,-500.0,0.00021997,2]
[316166492,1709386234413,-500.0,0.00021997,2]
[316166494,1709386234422,-500.0,0.00021997,2]
[316166496,1709386234431,-500.0,0.00021997,2]
[316166498,1709386234441,-500.0,0.00021997,2]
[316166500,1709386234451,-236.07165657,0.00021997,2]
[316166502,1709386234460,-500.0,0.00021997,2]
[316166505,1709386234471,-500.0,0.00021997,2]
[316166506,1709386234481,-500.40339399,0.00021997,2]
[316166508,1709386234492,-500.0,0.00021997,2]
[316166511,1709386234506,-500.0,0.00021997,2]
[316166513,1709386234516,-500.0,0.00021997,2]
[316166514,1709386234527,-500.0,0.00021997,2]
[316166517,1709386234537,-394.51729117,0.00021997,2]
[316166519,1709386234551,-170.14764432,0.00021997,2]
[316166521,1709386234561,-500.0,0.00021997,2]
[316166523,1709386234571,-581.88330222,0.00021997,2]
[316166524,1709386234580,-628.76,0.00021997,2]
[316166526,1709386234589,-521.05304832,0.00021997,2]
[316166527,1709386234600,-500.0,0.00021997,2]
[316166529,1709386234609,-500.0,0.00021997,2]
[316166540,1709386234740,-237.30620827,0.00021997,2]
[316166542,1709386234750,-501.16860225,0.00021997,2]
[316166544,1709386234775,-500.0,0.00021997,2]
[316166545,1709386234784,-268.82581666,0.00021997,2]
[316166546,1709386234797,-500.0,0.00021997,2]
[316166547,1709386234806,-500.0,0.00021997,2]
[316166548,1709386234816,-500.0,0.00021997,2]
[316166549,1709386234826,-500.0,0.00021997,2]
[316166551,1709386234835,-500.0,0.00021997,2]
[316166553,1709386234845,-500.0,0.00021997,2]
[316166555,1709386234855,-500.0,0.00021997,2]
[316166556,1709386234864,-501.71930194,0.00021997,2]
[316166558,1709386234874,-500.0,0.00021997,2]
[316166559,1709386234883,-500.0,0.00021997,2]
[316166560,1709386234893,-500.0,0.00021997,2]
[316166561,1709386234904,-1000.78422322,0.00021997,2]
[316166562,1709386234913,-618.65731011,0.00021997,2]